bitfinex/quotes_BTCUSD_20250604
["timestamp","ask_amount","ask_price","bid_price","bid_amount"]
[1749045719274,0.38742194,104600.0,104570.0,0.0958543]
[1749045719488,0.41822194,104600.0,104590.0,0.43244]
[1749045719706,0.41822194,104600.0,104590.0,0.25856]
[1749045719893,0.42752307,104600.0,104590.0,0.25856]
[1749045720157,0.42851147,104600.0,104590.0,0.25856]
[1749045720814,0.67337175,104600.0,104590.0,0.25856]
[1749045721048,0.67337175,104600.0,104570.0,0.20636]
[1749045721049,0.0329,104580.0,104570.0,0.20636]
[1749045721257,0.0329,104580.0,104570.0,0.43288]
[1749045721258,0.3729,104580.0,104570.0,0.43288]
[1749045722383,0.34,104580.0,104570.0,0.5287343]
[1749045722806,0.09056197,104600.0,104570.0,0.5286143]
[1749045723020,0.42108268,104600.0,104580.0,0.09824424]
[1749045723279,0.01582194,104600.0,104590.0,0.17428]
[1749045723513,0.01382194,104600.0,104590.0,0.2701343]
[1749045723722,0.01382194,104600.0,104590.0,0.28467515]
[1749045723959,0.01382194,104600.0,104590.0,0.31717515]
[1749045724174,0.01382194,104600.0,104590.0,0.33671515]
[1749045724391,0.01482194,104600.0,104590.0,0.33671515]
[1749045724607,0.01382194,104600.0,104590.0,0.33671515]
[1749045724825,0.01382194,104600.0,104590.0,0.22624]
[1749045725031,0.01582194,104600.0,104590.0,0.22624]
[1749045725323,0.01382194,104600.0,104590.0,0.22624]
[1749045725761,0.01382194,104600.0,104590.0,0.22724]
[1749045726208,0.01382194,104600.0,104590.0,0.22708]
[1749045726675,0.01482194,104600.0,104590.0,0.33747515]
[1749045728076,0.01482194,104600.0,104590.0,0.11139515]
[1749045728369,0.01482194,104600.0,104590.0,0.33719515]
[1749045728782,0.01482194,104600.0,104590.0,0.40149515]
[1749045729839,0.00148321,104600.0,104590.0,0.40149515]
[1749045730048,0.00048321,104600.0,104590.0,0.40149515]
[1749045730255,0.00048321,104600.0,104590.0,0.74149515]
[1749045730926,0.35217743,104610.0,104600.0,0.41674085]
[1749045731140,0.3523223,104610.0,104600.0,0.51259515]
[1749045731348,0.3523223,104610.0,104600.0,0.17259515]
[1749045732224,0.3523223,104610.0,104600.0,0.17559515]
[1749045732881,0.3523223,104610.0,104600.0,0.39927515]
[1749045733546,0.3523223,104610.0,104600.0,0.37057515]
[1749045733749,0.3523223,104610.0,104600.0,0.1525743]
[1749045733750,0.6923223,104610.0,104600.0,0.1525743]
[1749045733964,0.6923223,104610.0,104600.0,0.1018543]
[1749045734184,0.6923223,104610.0,104600.0,0.33995515]
[1749045734417,0.6923223,104610.0,104600.0,0.3254143]
[1749045734618,0.3523223,104610.0,104600.0,0.3253743]
[1749045734832,0.3523223,104610.0,104600.0,0.33991515]
[1749045735041,0.3523223,104610.0,104600.0,0.33983515]
[1749045735478,0.3850223,104610.0,104600.0,0.16407515]
[1749045735689,0.3850223,104610.0,104600.0,0.33875515]
[1749045735900,0.3523223,104610.0,104600.0,0.33875515]
[1749045736110,0.3523223,104610.0,104600.0,0.33575515]
[1749045736533,0.3523223,104610.0,104600.0,0.33675515]
[1749045736953,0.3523223,104610.0,104600.0,0.11339515]
[1749045737162,0.3523223,104610.0,104600.0,0.33675515]
[1749045737590,0.37012917,104610.0,104600.0,0.33675515]
[1749045737799,0.3523223,104610.0,104600.0,0.33675515]
[1749045738016,0.3523223,104610.0,104600.0,0.16407515]
[1749045738230,0.37012891,104610.0,104600.0,0.0988543]
[1749045738481,0.3832223,104610.0,104600.0,0.3220943]
[1749045738693,0.3523223,104610.0,104600.0,0.3220943]
[1749045738909,0.71012899,104610.0,104600.0,0.3220943]
[1749045739125,0.70122567,104610.0,104600.0,0.3220943]
[1749045739338,0.71012954,104610.0,104600.0,0.3220943]
[1749045739546,0.6923223,104610.0,104600.0,0.3220943]
[1749045739793,0.6923223,104610.0,104600.0,0.33663515]
[1749045740611,0.71903339,104610.0,104600.0,0.33663515]
[1749045740861,0.7241223,104610.0,104600.0,0.0988543]
[1749045741097,0.7241223,104610.0,104600.0,0.223]
[1749045741098,0.76459059,104610.0,104600.0,0.223]
[1749045741302,0.7912986,104610.0,104600.0,0.22296]
[1749045741517,0.71919567,104610.0,104600.0,0.22296]
[1749045741766,0.6923223,104610.0,104600.0,0.33335515]
[1749045741974,0.3523223,104610.0,104600.0,0.33335515]
[1749045742191,0.36122709,104610.0,104600.0,0.39605515]
[1749045742420,0.3523223,104610.0,104600.0,0.39605515]
[1749045742637,0.3523223,104610.0,104600.0,0.83765515]
[1749045742638,0.34326445,104610.0,104600.0,0.83765515]
[1749045743288,0.01768609,104630.0,104620.0,0.07694085]
[1749045743499,0.01768609,104630.0,104620.0,0.49635515]
[1749045744186,0.01768609,104630.0,104620.0,0.39575515]
[1749045744618,0.01768609,104630.0,104620.0,0.73575515]
[1749045745037,0.01768609,104630.0,104620.0,0.74075515]
[1749045745454,0.01768609,104630.0,104620.0,0.73575515]
[1749045745902,0.01868609,104630.0,104620.0,0.74175515]
[1749045746375,0.01868609,104630.0,104620.0,0.74575515]
[1749045746798,0.00268609,104630.0,104620.0,0.74575515]
[1749045747241,0.00268609,104630.0,104620.0,0.57347515]
[1749045747463,0.00268609,104630.0,104620.0,0.4251743]
[1749045747701,0.00268609,104630.0,104620.0,0.5345343]
[1749045748154,0.00268609,104630.0,104620.0,0.3627743]
[1749045748362,0.00268609,104630.0,104620.0,0.43276]
[1749045748363,0.43912343,104630.0,104620.0,0.43276]
[1749045748581,0.47381752,104630.0,104620.0,0.43276]
[1749045748801,0.43912343,104630.0,104620.0,0.21124]
[1749045749019,0.40608609,104630.0,104620.0,0.42976]
[1749045749282,0.40608609,104630.0,104620.0,0.42972]
[1749045749477,0.06608609,104630.0,104620.0,0.42972]
[1749045749899,0.03288609,104630.0,104620.0,0.5276543]
[1749045750130,0.00168609,104630.0,104620.0,0.53919515]
[1749045750340,0.00368609,104630.0,104620.0,0.53919515]
[1749045751667,0.06428609,104630.0,104620.0,0.3527743]
[1749045752099,0.06428609,104630.0,104620.0,0.5244143]
[1749045752956,0.06428609,104630.0,104620.0,0.25692]
[1749045753176,0.06428609,104630.0,104620.0,0.4284]
[1749045757143,0.07319091,104630.0,104620.0,0.4284]
[1749045757359,0.06428609,104630.0,104620.0,0.4284]
[1749045757569,0.03398609,104630.0,104620.0,0.4284]
[1749045758026,0.00368609,104630.0,104620.0,0.4284]
[1749045758457,0.01259101,104630.0,104620.0,0.4284]
[1749045758677,0.00368609,104630.0,104620.0,0.4284]
[1749045759805,0.04279119,104630.0,104620.0,0.4284]
[1749045760041,0.03388609,104630.0,104620.0,0.20624]
[1749045760263,0.41529096,104630.0,104620.0,0.42748]
[1749045760500,0.40638609,104630.0,104620.0,0.42748]
[1749045760981,0.40638609,104630.0,104620.0,0.20624]
[1749045760982,0.41529044,104630.0,104620.0,0.20624]
[1749045761209,0.0637,104620.0,104610.0,0.20628]
[1749045761437,0.03970351,104620.0,104610.0,0.22112]
[1749045761673,0.0308,104620.0,104610.0,0.05068]
[1749045761932,0.48862343,104630.0,104610.0,0.22108]
[1749045762158,0.34,104620.0,104610.0,0.22108]
[1749045762381,0.34,104620.0,104610.0,0.3169343]
[1749045762626,0.11458609,104630.0,104610.0,0.3169343]
[1749045762867,0.11458609,104630.0,104620.0,0.3152143]
[1749045762868,0.00168609,104630.0,104620.0,0.3152143]
[1749045763102,0.00168609,104630.0,104620.0,0.17179526]
[1749045763329,0.01059238,104630.0,104620.0,0.4080449]
[1749045763546,0.00168609,104630.0,104620.0,0.40565611]
[1749045764186,0.00168609,104630.0,104620.0,0.61193611]
[1749045764401,0.00168609,104630.0,104620.0,0.71253611]
[1749045764616,0.00168609,104630.0,104620.0,0.61193611]
[1749045764826,0.00268609,104630.0,104620.0,0.61193611]
[1749045765723,0.00368609,104630.0,104620.0,0.61193611]
[1749045765946,0.00368609,104630.0,104620.0,0.53599515]
[1749045766448,0.01258985,104630.0,104620.0,0.3511743]
[1749045766648,0.00268609,104630.0,104620.0,0.5212543]
[1749045766878,0.03288609,104630.0,104620.0,0.5212543]
[1749045767146,0.03288609,104630.0,104620.0,0.20728]
[1749045767373,0.03288609,104630.0,104620.0,0.25632]
[1749045767374,0.40328609,104630.0,104620.0,0.25632]
[1749045767597,0.40328609,104630.0,104620.0,0.42636]
[1749045767820,0.40328609,104630.0,104620.0,0.25632]
[1749045768038,0.46303026,104630.0,104620.0,0.42632]
[1749045768289,0.43632343,104630.0,104620.0,0.42632]
[1749045768521,0.43632343,104630.0,104620.0,0.42628]
[1749045768972,0.43632343,104630.0,104620.0,0.25632]
[1749045769189,0.44622508,104630.0,104620.0,0.4252]
[1749045769395,0.45612678,104630.0,104620.0,0.4252]
[1749045769645,0.44722497,104630.0,104620.0,0.4252]
[1749045769861,0.43832343,104630.0,104620.0,0.4252]
[1749045770582,0.46502842,104630.0,104620.0,0.4252]
[1749045770835,0.44722509,104630.0,104620.0,0.4252]
[1749045771058,0.45612682,104630.0,104620.0,0.425]
[1749045771269,0.43832343,104630.0,104620.0,0.425]
[1749045771485,0.45612682,104630.0,104620.0,0.425]
[1749045771785,0.43832343,104630.0,104620.0,0.425]
[1749045771998,0.42308947,104630.0,104620.0,0.425]
[1749045772206,0.40528609,104630.0,104620.0,0.425]
[1749045772431,0.4141878,104630.0,104620.0,0.425]
[1749045772640,0.40528609,104630.0,104620.0,0.425]
[1749045774213,0.42308923,104630.0,104620.0,0.25532]
[1749045774438,0.58572051,104630.0,104620.0,0.25532]
[1749045774697,0.58572051,104630.0,104620.0,0.42464]
[1749045774698,0.5876025,104630.0,104620.0,0.42464]
[1749045775141,0.5965028,104630.0,104620.0,0.42464]
[1749045775369,0.69235712,104630.0,104620.0,0.42452]
[1749045775598,0.70125689,104630.0,104620.0,0.42452]
[1749045775821,0.6834568,104630.0,104620.0,0.42452]
[1749045776076,0.70125101,104630.0,104620.0,0.42452]
[1749045776299,0.64775716,104630.0,104620.0,0.42452]
[1749045776519,0.64975716,104630.0,104620.0,0.42452]
[1749045776759,0.68535779,104630.0,104620.0,0.42452]
[1749045776990,0.66655746,104630.0,104620.0,0.42452]
[1749045777257,0.66955746,104630.0,104620.0,0.42432]
[1749045777454,0.66955746,104630.0,104620.0,0.20628]
[1749045777672,0.66955746,104630.0,104620.0,0.25532]
[1749045777892,0.74156703,104630.0,104620.0,0.42424]
[1749045778122,0.66957325,104630.0,104620.0,0.42424]
[1749045778348,0.68737392,104630.0,104620.0,0.42424]
[1749045778583,0.67847375,104630.0,104620.0,0.42424]
[1749045778803,0.69627478,104630.0,104620.0,0.42424]
[1749045779021,0.67847375,104630.0,104620.0,0.42424]
[1749045779258,0.69627488,104630.0,104620.0,0.42424]
[1749045779505,0.58261945,104630.0,104620.0,0.20628]
[1749045779737,0.53493846,104630.0,104620.0,0.42404]
[1749045779985,0.57353485,104630.0,104620.0,0.42404]
[1749045780211,0.57353485,104630.0,104620.0,0.42396]
[1749045780212,0.60041692,104630.0,104620.0,0.42396]
[1749045780444,0.67846997,104630.0,104620.0,0.42396]
[1749045780679,0.70517193,104630.0,104620.0,0.42396]
[1749045780913,0.74876608,104630.0,104620.0,0.42388]
[1749045781159,0.6604521,104630.0,104620.0,0.04904]
[1749045781410,0.62575801,104630.0,104620.0,0.04904]
[1749045781657,0.58698926,104630.0,104620.0,0.04904]
[1749045781907,0.62348748,104630.0,104620.0,0.04904]
[1749045782352,0.62348748,104630.0,104620.0,0.21752]
[1749045782570,0.64129228,104630.0,104620.0,0.21752]
[1749045782785,0.62348748,104630.0,104620.0,0.21752]
[1749045783256,0.0629,104620.0,104600.0,0.07594096]
[1749045783481,0.06529005,104620.0,104610.0,0.21736]
[1749045783971,0.406,104610.0,104590.0,0.20646487]
[1749045784192,0.4033,104610.0,104600.0,0.21724]
[1749045784419,0.4012,104600.0,104590.0,0.20646487]
[1749045784667,0.4012,104600.0,104590.0,0.42370487]
[1749045784888,0.43423734,104600.0,104590.0,0.42370487]
[1749045785828,0.43723734,104600.0,104590.0,0.42370487]
[1749045786051,0.44023734,104600.0,104590.0,0.42370487]
[1749045786312,0.44023734,104600.0,104590.0,0.25550487]
[1749045786543,0.44023734,104600.0,104590.0,0.42358487]
[1749045786999,0.4072,104600.0,104590.0,0.42358487]
[1749045787220,0.3764,104600.0,104590.0,0.42358487]
[1749045787470,0.3764,104600.0,104590.0,0.20646487]
[1749045787471,0.006,104600.0,104590.0,0.20646487]
[1749045787706,0.006,104600.0,104590.0,0.51935917]
[1749045788171,0.01490176,104600.0,104590.0,0.42350487]
[1749045788406,0.003,104600.0,104590.0,0.42350487]
[1749045788637,0.00239005,104610.0,104590.0,0.42350487]
[1749045788894,0.001,104600.0,104590.0,0.42350487]
[1749045789130,0.002,104600.0,104590.0,0.42350487]
[1749045789587,0.00990137,104600.0,104590.0,0.51935917]
[1749045789809,0.001,104600.0,104590.0,0.51935917]
[1749045791841,0.01090234,104600.0,104590.0,0.51935917]
[1749045792065,0.002,104600.0,104590.0,0.51935917]
[1749045792543,0.002,104600.0,104590.0,0.51923917]
[1749045792814,0.002,104600.0,104590.0,0.30231917]
[1749045793029,0.01090192,104600.0,104590.0,0.51767917]
[1749045793247,0.002,104600.0,104590.0,0.51767917]
[1749045793474,0.002,104600.0,104590.0,0.20646487]
[1749045793702,0.002,104600.0,104590.0,0.42174487]
[1749045793932,0.002,104600.0,104590.0,0.20646487]
[1749045794166,0.002,104600.0,104590.0,0.42166487]
[1749045794383,0.01090215,104600.0,104590.0,0.42166487]
[1749045794603,0.002,104600.0,104590.0,0.42166487]
[1749045795076,0.0655,104600.0,104590.0,0.00014487]
[1749045795353,0.0655,104600.0,104590.0,0.21542487]
[1749045795354,0.30097148,104600.0,104590.0,0.21542487]
[1749045795585,0.37523363,104600.0,104590.0,0.04752]
[1749045796035,0.33043943,104600.0,104590.0,0.04752]
[1749045796259,0.39638981,104600.0,104590.0,0.04752]
[1749045796495,0.36436363,104600.0,104590.0,0.04752]
[1749045796732,0.36436363,104600.0,104570.0,0.20632]
[1749045796733,0.0652,104580.0,104570.0,0.20632]
[1749045796998,0.0652,104580.0,104570.0,0.25384]
[1749045796999,0.57413093,104580.0,104570.0,0.25384]
[1749045797196,0.57413093,104580.0,104570.0,0.4216]
[1749045797197,0.74341132,104580.0,104570.0,0.4216]
[1749045797449,0.75698946,104580.0,104570.0,0.20632]
[1749045797673,0.36868753,104570.0,104520.0,0.28230096]
[1749045797953,0.34,104550.0,104530.0,0.04752]
[1749045798181,0.34,104550.0,104530.0,0.21532]
[1749045798182,0.09899997,104540.0,104530.0,0.21532]
[1749045798649,0.09899997,104540.0,104530.0,0.21524]
[1749045798878,0.09899997,104540.0,104530.0,0.04752]
[1749045799105,0.34907762,104550.0,104530.0,0.2176315]
[1749045799340,0.0312,104560.0,104540.0,0.07594096]
[1749045799559,0.03359005,104560.0,104550.0,0.16784]
[1749045799771,0.06359005,104560.0,104550.0,0.16784]
[1749045800699,0.1063861,104570.0,104540.0,0.07594096]
[1749045800700,0.0326,104570.0,104540.0,0.07594096]
[1749045800935,0.04567618,104580.0,104550.0,0.21767087]
[1749045800936,0.0336,104580.0,104550.0,0.21767087]
[1749045801158,0.0336,104580.0,104550.0,0.3111343]
[1749045801159,0.001,104560.0,104550.0,0.3111343]
[1749045801393,0.0336,104580.0,104550.0,0.3111343]
[1749045801632,0.003,104560.0,104550.0,0.3111343]
[1749045802106,0.001,104570.0,104550.0,0.0958543]
[1749045802351,0.001,104570.0,104550.0,0.04752]
[1749045802352,0.4058,104560.0,104550.0,0.04752]
[1749045802626,0.70124516,104560.0,104550.0,0.04752]
[1749045802871,0.70124516,104560.0,104550.0,0.2154]
[1749045802872,0.90507666,104560.0,104550.0,0.2154]
[1749045803108,0.76975305,104560.0,104550.0,0.2154]
[1749045803336,0.70449602,104560.0,104550.0,0.2154]
[1749045803586,0.66571225,104560.0,104550.0,0.2154]
[1749045803866,0.66571225,104560.0,104550.0,0.21528]
[1749045804178,0.70040634,104560.0,104550.0,0.21528]
[1749045804403,0.54734259,104560.0,104550.0,0.21528]
[1749045804944,0.55963777,104560.0,104550.0,0.21516]
[1749045805196,0.56263777,104560.0,104550.0,0.21516]
[1749045805655,0.55134259,104560.0,104550.0,0.21516]
[1749045805878,0.51833267,104560.0,104550.0,0.21516]
[1749045806102,0.50929653,104560.0,104550.0,0.21516]
[1749045807858,0.50929653,104560.0,104550.0,0.21496]
[1749045808918,0.54232512,104560.0,104550.0,0.21496]
[1749045809129,0.55135137,104560.0,104550.0,0.21496]
[1749045809990,0.51035137,104560.0,104550.0,0.21496]
[1749045810210,0.46829653,104560.0,104550.0,0.21496]
[1749045810416,0.43650645,104560.0,104540.0,0.2064]
[1749045810657,0.43650645,104560.0,104530.0,0.00048321]
[1749045810658,1.460413,104540.0,104530.0,0.00048321]
[1749045810877,1.44335487,104540.0,104530.0,0.00048321]
[1749045811096,1.48236293,104540.0,104530.0,0.16792321]
[1749045811318,1.34177571,104540.0,104530.0,0.16788321]
[1749045811785,1.34177571,104540.0,104470.0,0.07594096]
[1749045811786,2.24407485,104530.0,104470.0,0.07594096]
[1749045812149,2.24407485,104530.0,104480.0,0.04766493]
[1749045812150,0.0622,104500.0,104480.0,0.04766493]
[1749045812385,0.00239005,104490.0,104480.0,0.21550493]
[1749045812608,0.37539997,104490.0,104480.0,0.04766493]
[1749045812886,0.40330992,104490.0,104480.0,0.21558493]
[1749045813092,0.40172992,104490.0,104480.0,0.21558493]
[1749045813332,0.40171484,104490.0,104480.0,0.21558493]
[1749045813558,0.36872,104490.0,104480.0,0.21558493]
[1749045813998,0.36872,104490.0,104480.0,0.21562493]
[1749045814445,0.36872,104490.0,104480.0,0.22162493]
[1749045814666,0.36872,104490.0,104480.0,0.22862493]
[1749045814882,0.36872,104490.0,104480.0,0.00714493]
[1749045815100,0.36872,104490.0,104480.0,0.21662493]
[1749045815319,0.43232,104490.0,104480.0,0.03004483]
[1749045815542,0.43232,104490.0,104480.0,0.21862493]
[1749045816033,0.04450809,104520.0,104480.0,0.02107862]
[1749045816034,0.0641,104510.0,104480.0,0.02107862]
[1749045816282,0.28838,104520.0,104490.0,0.0023923]
[1749045816500,0.28838,104520.0,104500.0,0.16796]
[1749045816501,0.03110405,104510.0,104500.0,0.16796]
[1749045816727,0.52945835,104510.0,104480.0,0.00314493]
[1749045816950,0.50844963,104510.0,104500.0,0.04756]
[1749045817176,0.55099693,104510.0,104500.0,0.04756]
[1749045817398,0.0323,104490.0,104480.0,0.00214493]
[1749045817623,0.03469005,104490.0,104480.0,0.21598493]
[1749045817860,0.325,104500.0,104480.0,0.2359187]
[1749045818105,0.00239005,104490.0,104480.0,0.21798493]
[1749045818589,0.00239005,104490.0,104480.0,0.21598493]
[1749045818811,0.00239005,104490.0,104480.0,0.21614493]
[1749045819247,0.09824435,104500.0,104480.0,0.21614493]
[1749045819467,0.16164435,104500.0,104480.0,0.21614493]
[1749045820130,0.16164435,104500.0,104480.0,0.22511166]
[1749045820354,0.19489729,104500.0,104480.0,0.22511166]
[1749045820580,0.12994435,104500.0,104480.0,0.21714493]
[1749045820806,0.00239005,104490.0,104480.0,0.21714493]
[1749045821030,0.00239005,104490.0,104480.0,0.24304478]
[1749045821257,0.00239005,104490.0,104480.0,0.21714493]
[1749045821483,0.00239005,104490.0,104480.0,0.01011123]
[1749045821702,0.028717,104500.0,104480.0,0.23499721]
[1749045821924,0.028717,104500.0,104480.0,0.21706493]
[1749045822142,0.03110705,104500.0,104480.0,0.21606493]
[1749045822367,0.03110705,104500.0,104490.0,0.04756]
[1749045822812,0.028717,104500.0,104490.0,0.04756]
[1749045823032,0.06120705,104500.0,104490.0,0.04756]
[1749045823267,0.56091429,104500.0,104490.0,0.04756]
[1749045823494,0.6024621,104500.0,104490.0,0.21588]
[1749045823960,0.60248289,104500.0,104490.0,0.21588]
[1749045824396,0.60448289,104500.0,104490.0,0.21588]
[1749045824633,0.53893514,104500.0,104490.0,0.21588]
[1749045824864,0.3807279,104500.0,104490.0,0.21588]
[1749045825089,0.371717,104500.0,104490.0,0.21588]
[1749045825317,0.3731,104490.0,104470.0,0.20656]
[1749045825540,0.3731,104490.0,104470.0,0.00911235]
[1749045825541,0.06859005,104480.0,104470.0,0.00911235]
[1749045825772,0.45310662,104480.0,104470.0,0.21614498]
[1749045826038,0.58151862,104480.0,104470.0,0.21614498]
[1749045826250,0.59052952,104480.0,104470.0,0.00014498]
[1749045826481,0.59052952,104480.0,104470.0,0.04786498]
[1749045826482,0.61925352,104480.0,104470.0,0.04786498]
[1749045826740,0.59052952,104480.0,104470.0,0.04986498]
[1749045826952,0.59052952,104480.0,104470.0,0.21810498]
[1749045827170,0.55558177,104480.0,104470.0,0.21610498]
[1749045827394,0.55658177,104480.0,104470.0,0.21910498]
[1749045827634,0.55558177,104480.0,104470.0,0.21610498]
[1749045828075,0.55758177,104480.0,104470.0,0.21610498]
[1749045828313,0.56058177,104480.0,104470.0,0.21610498]
[1749045828578,0.39852747,104480.0,104470.0,0.21610498]
[1749045828812,0.345,104480.0,104470.0,0.00014498]
[1749045829027,0.345,104480.0,104470.0,0.21610498]
[1749045829677,0.345,104480.0,104470.0,0.24300757]
[1749045829678,0.005,104480.0,104470.0,0.24300757]
[1749045829896,0.005,104480.0,104470.0,0.23403891]
[1749045830118,0.005,104480.0,104470.0,0.29653891]
[1749045830559,0.002,104480.0,104470.0,0.26423891]
[1749045830781,0.01365368,104500.0,104470.0,0.09651194]
[1749045831000,0.001,104480.0,104470.0,0.26403891]
[1749045831268,0.001,104480.0,104470.0,0.23383891]
[1749045831488,0.001,104480.0,104470.0,0.23371891]
[1749045831710,0.56270181,104500.0,104470.0,0.25165296]
[1749045831942,0.17047689,104490.0,104470.0,0.24268604]
[1749045832193,0.09089976,104480.0,104470.0,0.01807891]
[1749045832413,0.07961648,104480.0,104470.0,0.19095891]
[1749045832639,0.17299113,104480.0,104470.0,0.19095891]
[1749045832861,0.26681574,104480.0,104470.0,0.19095891]
[1749045833080,0.26023263,104480.0,104470.0,0.19095891]
[1749045833533,0.26123263,104480.0,104470.0,0.19095891]
[1749045834626,0.23250763,104480.0,104470.0,0.19095891]
[1749045834860,0.17874819,104480.0,104470.0,0.24095891]
[1749045835129,0.04340755,104480.0,104470.0,0.24095891]
[1749045835355,0.01468355,104480.0,104470.0,0.24095891]
[1749045835576,0.01468386,104480.0,104470.0,0.24095891]
[1749045836714,0.00339005,104480.0,104470.0,0.24095891]
[1749045836951,0.01469348,104480.0,104470.0,0.24095891]
[1749045837416,0.04689348,104480.0,104470.0,0.24095891]
[1749045838171,0.04689348,104480.0,104470.0,0.24079891]
[1749045838596,0.01469348,104480.0,104470.0,0.24079891]
[1749045838839,0.03880746,104480.0,104470.0,0.24079891]
[1749045839511,0.02376511,104480.0,104470.0,0.24079891]
[1749045839752,0.02512682,104480.0,104470.0,0.24079891]
[1749045840468,0.03884738,104480.0,104470.0,0.05008]
[1749045840697,0.02751687,104480.0,104470.0,0.05008]
[1749045840929,0.3712,104470.0,104440.0,0.07594096]
[1749045841147,0.01133643,104460.0,104450.0,0.05008]
[1749045841360,0.02006184,104460.0,104450.0,0.05904924]
[1749045841592,0.02006184,104460.0,104450.0,0.05904926]
[1749045841800,0.02006184,104460.0,104450.0,0.22256]
[1749045842047,0.00907051,104460.0,104450.0,0.05008]
[1749045842271,0.01104615,104460.0,104450.0,0.05008]
[1749045842703,0.01104615,104460.0,104420.0,0.08545334]
[1749045842704,0.05410758,104460.0,104430.0,0.0326]
[1749045842963,0.05410758,104460.0,104440.0,0.004]
[1749045842964,0.39077071,104450.0,104440.0,0.004]
[1749045843191,0.40509024,104450.0,104420.0,0.06377249]
[1749045843422,0.03249005,104440.0,104430.0,0.18076]
[1749045843606,0.07846395,104440.0,104430.0,0.18076]
[1749045843875,0.07846395,104440.0,104430.0,0.18096]
[1749045843876,0.48355419,104440.0,104430.0,0.18096]
[1749045844175,0.61099241,104440.0,104430.0,0.18136]
[1749045844421,0.61099241,104440.0,104430.0,0.23604]
[1749045844850,0.64594016,104440.0,104430.0,0.23604]
[1749045845067,0.64594016,104440.0,104430.0,0.23652136]
[1749045845303,0.61099241,104440.0,104430.0,0.23652136]
[1749045845526,0.61099241,104440.0,104430.0,0.00048136]
[1749045845527,0.61268722,104440.0,104430.0,0.00048136]
[1749045845748,0.64169124,104440.0,104430.0,0.24044136]
[1749045846198,0.64369124,104440.0,104430.0,0.24044136]
[1749045846417,0.70806036,104440.0,104430.0,0.24052136]
[1749045846634,0.67311261,104440.0,104430.0,0.05728136]
[1749045846854,0.57973947,104440.0,104430.0,0.24048136]
[1749045848145,0.56464218,104440.0,104430.0,0.24048136]
[1749045848368,0.06708788,104440.0,104430.0,0.00048136]
[1749045848617,0.002,104440.0,104430.0,0.24084136]
[1749045849042,0.002,104440.0,104430.0,0.00048136]
[1749045849251,0.002,104440.0,104430.0,0.24076136]
[1749045849482,0.002,104440.0,104430.0,0.00048136]
[1749045849732,0.002,104440.0,104430.0,0.24076136]
[1749045850226,0.002,104440.0,104430.0,0.39921566]
[1749045851561,0.002,104440.0,104430.0,0.40121566]
[1749045852039,0.34239005,104470.0,104430.0,0.37093566]
[1749045852040,0.45636003,104470.0,104430.0,0.37093566]
[1749045852269,0.001,104440.0,104430.0,0.37093566]
[1749045852495,0.001,104440.0,104430.0,0.37085566]
[1749045852710,0.001,104440.0,104430.0,0.33845566]
[1749045852952,0.09617269,104460.0,104430.0,0.00248136]
[1749045853177,0.34,104440.0,104430.0,0.24256136]
[1749045853404,0.34,104440.0,104430.0,0.24252136]
[1749045854060,0.34,104440.0,104430.0,0.05928136]
[1749045854502,0.34,104440.0,104430.0,0.24240136]
[1749045855384,0.34,104440.0,104430.0,0.05928136]
[1749045855869,0.39499338,104440.0,104430.0,0.03044056]
[1749045856066,0.43787125,104440.0,104430.0,0.03044056]
[1749045856297,0.43787125,104440.0,104430.0,0.21368056]
[1749045857397,0.43787125,104440.0,104430.0,0.03044056]
[1749045857612,0.43787125,104440.0,104430.0,0.21360056]
[1749045857613,0.09789057,104440.0,104430.0,0.21360056]
[1749045857831,0.10028062,104440.0,104430.0,0.21360056]
[1749045858056,0.27597371,104440.0,104430.0,0.23996]
[1749045858280,0.27597371,104440.0,104420.0,0.00921249]
[1749045858281,0.27358366,104440.0,104420.0,0.00921249]
[1749045858521,0.12784277,104440.0,104430.0,0.05684]
[1749045858745,0.25864482,104440.0,104430.0,0.2398]
[1749045858999,0.29094482,104440.0,104430.0,0.05684]
[1749045859203,0.31529883,104440.0,104430.0,0.23976]
[1749045859442,0.31529883,104440.0,104430.0,0.23968]
[1749045859679,0.34403783,104440.0,104430.0,0.23968]
[1749045859903,0.35957868,104440.0,104430.0,0.23968]
[1749045860140,0.35957868,104440.0,104420.0,0.06605249]
[1749045860141,0.4014,104430.0,104420.0,0.06605249]
[1749045860363,0.63222553,104430.0,104420.0,0.24869249]
[1749045860610,0.57158584,104430.0,104420.0,0.24869249]
[1749045860837,0.57158584,104430.0,104420.0,0.00921249]
[1749045860838,0.55303729,104430.0,104420.0,0.00921249]
[1749045861078,0.59655354,104430.0,104420.0,0.18268]
[1749045861311,0.60975744,104430.0,104420.0,0.18268]
[1749045861539,0.64213926,104430.0,104420.0,0.18268]
[1749045862026,0.54255039,104430.0,104420.0,0.18268]
[1749045862269,0.54255039,104430.0,104390.0,0.20668]
[1749045862523,0.54255039,104430.0,104420.0,0.05684]
[1749045862524,0.07639411,104430.0,104420.0,0.05684]
[1749045862816,0.16520205,104430.0,104420.0,0.24024]
[1749045863305,0.17020205,104430.0,104420.0,0.24124]
[1749045863536,0.007,104430.0,104420.0,0.24124]
[1749045863767,0.007,104430.0,104420.0,0.24024]
[1749045863768,0.002,104430.0,104420.0,0.24024]
[1749045863992,0.005,104430.0,104420.0,0.24124]
[1749045864229,0.1628543,104430.0,104420.0,0.24112]
[1749045864457,0.1628543,104430.0,104420.0,0.05884]
[1749045864458,0.18507275,104430.0,104420.0,0.05884]
[1749045864691,0.18507275,104430.0,104420.0,0.24104]
[1749045864692,0.24537451,104430.0,104420.0,0.24104]
[1749045864915,0.24298446,104430.0,104420.0,0.24104]
[1749045865621,0.27277083,104430.0,104420.0,0.24104]
[1749045865885,0.27277083,104430.0,104420.0,0.05884]
[1749045866108,0.23782308,104430.0,104420.0,0.002]
[1749045866351,0.23782308,104430.0,104420.0,0.24072]
[1749045866577,0.25061576,104430.0,104420.0,0.24072]
[1749045866806,0.25061576,104430.0,104420.0,0.05884]
[1749045867021,0.26515661,104430.0,104420.0,0.2406]
[1749045867233,0.26514011,104430.0,104420.0,0.2406]
[1749045867456,0.2871786,104430.0,104420.0,0.05884]
[1749045867681,0.26182459,104430.0,104420.0,0.24052]
[1749045868354,0.27636544,104430.0,104420.0,0.24036]
[1749045868571,0.27636544,104430.0,104420.0,0.002]
[1749045868572,0.30171945,104430.0,104420.0,0.002]
[1749045868795,0.30171945,104430.0,104420.0,0.24032]
[1749045869020,0.2871786,104430.0,104420.0,0.24032]